[Event "December 12 Early 2023"]
[Site "https://www.chess.com"]
[Date "2023.12.12"]
[Round "5"]
[White "Tikhonov, Viacheslav"]
[Black "Adelman, Charles"]
[Result "1-0"]
[Board "130"]
[TimeControl "180+1"]
[WhiteFideId "44196407"]
[BlackFideId "2003597"]
[WhiteElo "2519"]
[BlackElo "2283"]
[WhiteTeam "RUS"]
[BlackTeam "USA"]
[WhiteClock "0:00:05"]
[BlackClock "0:00:16"]

1. e4 {[%clk 0:02:57]}  Nf6 {[%clk 0:03:00]} 2. Nc3 {[%clk 0:02:56]}  d6 {[%clk 0:03:00]} 3. d4 {[%clk 0:02:56]}  Nbd7 {[%clk 0:03:00]} 4. Be3 {[%clk 0:02:55]}  e5 {[%clk 0:03:00]} 5. h3 {[%clk 0:02:53]}  Be7 {[%clk 0:03:00]} 6. Nge2 {[%clk 0:02:53]}  c6 {[%clk 0:03:00]} 7. a4 {[%clk 0:02:52]}  a5 {[%clk 0:03:00]} 8. g4 {[%clk 0:02:53]}  Qc7 {[%clk 0:02:54]} 9. Bg2 {[%clk 0:02:53]}  O-O {[%clk 0:02:53]} 10. O-O {[%clk 0:02:53]}  g6 {[%clk 0:02:49]} 11. Qd2 {[%clk 0:02:53]}  Re8 {[%clk 0:02:45]} 12. Rad1 {[%clk 0:02:52]}  Bf8 {[%clk 0:02:42]} 13. f4 {[%clk 0:02:49]}  exd4 {[%clk 0:02:38]} 14. Bxd4 {[%clk 0:02:46]}  Bg7 {[%clk 0:02:30]} 15. Bf2 {[%clk 0:02:26]}  Nc5 {[%clk 0:02:28]} 16. e5 {[%clk 0:02:06]}  Nfd7 {[%clk 0:01:46]} 17. Qxd6 {[%clk 0:01:48]}  Qxd6 {[%clk 0:01:44]} 18. Rxd6 {[%clk 0:01:49]}  Bf8 {[%clk 0:01:44]} 19. Rdd1 {[%clk 0:01:42]}  Ne6 {[%clk 0:01:33]} 20. Ne4 {[%clk 0:01:32]}  Nec5 {[%clk 0:01:22]} 21. N2c3 {[%clk 0:01:15]}  Nxe4 {[%clk 0:01:10]} 22. Nxe4 {[%clk 0:01:16]}  Kg7 {[%clk 0:01:11]} 23. b3 {[%clk 0:01:10]}  Be7 {[%clk 0:01:08]} 24. Nd6 {[%clk 0:01:04]}  Bxd6 {[%clk 0:01:04]} 25. Rxd6 {[%clk 0:01:05]}  Nf8 {[%clk 0:00:56]} 26. Bd4 {[%clk 0:00:50]}  Kg8 {[%clk 0:00:54]} 27. f5 {[%clk 0:00:46]}  Bd7 {[%clk 0:00:46]} 28. e6 {[%clk 0:00:18]}  fxe6 {[%clk 0:00:46]} 29. fxg6 {[%clk 0:00:18]}  hxg6 {[%clk 0:00:43]} 30. Rxf8+ {[%clk 0:00:18]}  Rxf8 {[%clk 0:00:40]} 31. Rxd7 {[%clk 0:00:19]}  Rf7 {[%clk 0:00:39]} 32. Rxf7 {[%clk 0:00:12]}  Kxf7 {[%clk 0:00:39]} 33. Bf3 {[%clk 0:00:08]}  Rd8 {[%clk 0:00:38]} 34. Bc3 {[%clk 0:00:09]}  Rd7 {[%clk 0:00:35]} 35. Bxa5 {[%clk 0:00:07]}  Rd4 {[%clk 0:00:34]} 36. Kf2 {[%clk 0:00:04]}  Ke7 {[%clk 0:00:28]} 37. Bc3 {[%clk 0:00:05]}  Rd7 {[%clk 0:00:27]} 38. Bb4+ {[%clk 0:00:05]}  Kf7 {[%clk 0:00:27]} 39. Ke3 {[%clk 0:00:05]}  Kf6 {[%clk 0:00:26]} 40. Bc3+ {[%clk 0:00:05]}  Kg5 {[%clk 0:00:26]} 41. Be1 {[%clk 0:00:04]}  Rf7 {[%clk 0:00:24]} 42. h4+ {[%clk 0:00:05]}  Kf6 {[%clk 0:00:24]} 43. Bc3+ {[%clk 0:00:05]}  Ke7 {[%clk 0:00:24]} 44. g5 {[%clk 0:00:04]}  Rf5 {[%clk 0:00:23]} 45. Be4 {[%clk 0:00:04]}  Rf1 {[%clk 0:00:22]} 46. Bxg6 {[%clk 0:00:04]}  Rh1 {[%clk 0:00:22]} 47. Bf6+ {[%clk 0:00:04]}  Kd6 {[%clk 0:00:21]} 48. h5 {[%clk 0:00:04]}  Rh3+ {[%clk 0:00:20]} 49. Kf2 {[%clk 0:00:04]}  Rh2+ {[%clk 0:00:20]} 50. Kg3 {[%clk 0:00:05]}  Rd2 {[%clk 0:00:18]} 51. h6 {[%clk 0:00:05]}  Rd1 {[%clk 0:00:18]} 52. h7 {[%clk 0:00:05]}  Rh1 {[%clk 0:00:16]} 53. h8=Q {[%clk 0:00:05]} 1-0

[Event "December 12 Early 2023"]
[Site "https://www.chess.com"]
[Date "2023.12.12"]
[Round "5"]
[White "Player, Edmund C"]
[Black "Play, Gilles"]
[Result "1/2-1/2"]
[Board "131"]
[TimeControl "180+1"]
[WhiteFideId "406520"]
[BlackFideId "45130892"]
[WhiteElo "2273"]
[BlackElo "2518"]
[WhiteTeam "ENG"]
[BlackTeam "FRA"]
[WhiteClock "0:00:07"]
[BlackClock "0:00:03"]

1. Nc3 {[%clk 0:02:58]}  e5 {[%clk 0:02:57]} 2. e4 {[%clk 0:02:57]}  Nf6 {[%clk 0:02:56]} 3. Bc4 {[%clk 0:02:57]}  Nc6 {[%clk 0:02:56]} 4. d3 {[%clk 0:02:46]}  Bc5 {[%clk 0:02:53]} 5. h3 {[%clk 0:02:44]}  d6 {[%clk 0:02:51]} 6. Nge2 {[%clk 0:02:43]}  h6 {[%clk 0:02:44]} 7. O-O {[%clk 0:02:36]}  g5 {[%clk 0:02:43]} 8. Ng3 {[%clk 0:02:24]}  g4 {[%clk 0:02:26]} 9. Kh2 {[%clk 0:02:11]}  gxh3 {[%clk 0:02:05]} 10. gxh3 {[%clk 0:02:12]}  Qd7 {[%clk 0:02:05]} 11. Nf5 {[%clk 0:01:48]}  Nd4 {[%clk 0:02:03]} 12. f4 {[%clk 0:01:37]}  Nxf5 {[%clk 0:02:01]} 13. exf5 {[%clk 0:01:38]}  Qxf5 {[%clk 0:02:01]} 14. Qf3 {[%clk 0:01:35]}  Rg8 {[%clk 0:01:40]} 15. fxe5 {[%clk 0:01:22]}  Bg1+ {[%clk 0:01:21]} 16. Kh1 {[%clk 0:01:21]}  Qxe5 {[%clk 0:00:49]} 17. Bf4 {[%clk 0:01:19]}  Qh5 {[%clk 0:00:39]} 18. Rae1+ {[%clk 0:00:58]}  Kd8 {[%clk 0:00:32]} 19. Qxh5 {[%clk 0:00:34]}  Nxh5 {[%clk 0:00:33]} 20. Bxf7 {[%clk 0:00:33]}  Ng3+ {[%clk 0:00:24]} 21. Bxg3 {[%clk 0:00:29]}  Rxg3 {[%clk 0:00:25]} 22. Re8+ {[%clk 0:00:26]}  Kd7 {[%clk 0:00:24]} 23. Rxg1 {[%clk 0:00:24]}  Rxh3+ {[%clk 0:00:24]} 24. Kg2 {[%clk 0:00:24]}  Rh4 {[%clk 0:00:17]} 25. Kg3 {[%clk 0:00:22]}  Rb4 {[%clk 0:00:16]} 26. b3 {[%clk 0:00:17]}  Kc6 {[%clk 0:00:16]} 27. a3 {[%clk 0:00:16]}  Rg4+ {[%clk 0:00:16]} 28. Kh2 {[%clk 0:00:15]}  Rf4 {[%clk 0:00:15]} 29. Bd5+ {[%clk 0:00:14]}  Kb6 {[%clk 0:00:15]} 30. Be6 {[%clk 0:00:13]}  Rf2+ {[%clk 0:00:14]} 31. Kg3 {[%clk 0:00:13]}  Rxc2 {[%clk 0:00:14]} 32. Na4+ {[%clk 0:00:12]}  Ka5 {[%clk 0:00:13]} 33. Rxc8 {[%clk 0:00:10]}  Rxc8 {[%clk 0:00:11]} 34. Bxc8 {[%clk 0:00:11]}  b5 {[%clk 0:00:11]} 35. Rg2 {[%clk 0:00:02]}  Rxg2+ {[%clk 0:00:06]} 36. Kxg2 {[%clk 0:00:03]}  bxa4 {[%clk 0:00:06]} 37. Be6 {[%clk 0:00:02]}  axb3 {[%clk 0:00:05]} 38. Bxb3 {[%clk 0:00:03]}  Kb5 {[%clk 0:00:06]} 39. Kf3 {[%clk 0:00:04]}  a5 {[%clk 0:00:06]} 40. Ke4 {[%clk 0:00:04]}  Kc5 {[%clk 0:00:06]} 41. d4+ {[%clk 0:00:03]}  Kb5 {[%clk 0:00:06]} 42. Kd5 {[%clk 0:00:02]}  h5 {[%clk 0:00:06]} 43. Ke4 {[%clk 0:00:02]}  c5 {[%clk 0:00:05]} 44. dxc5 {[%clk 0:00:02]}  dxc5 {[%clk 0:00:06]} 45. Kf4 {[%clk 0:00:02]}  c4 {[%clk 0:00:06]} 46. Bc2 {[%clk 0:00:02]}  c3 {[%clk 0:00:04]} 47. Kg5 {[%clk 0:00:03]}  Kc4 {[%clk 0:00:04]} 48. Kxh5 {[%clk 0:00:03]}  Kd4 {[%clk 0:00:05]} 49. Kg4 {[%clk 0:00:03]}  Ke3 {[%clk 0:00:05]} 50. Kf5 {[%clk 0:00:03]}  Kd2 {[%clk 0:00:06]} 51. Ba4 {[%clk 0:00:03]}  c2 {[%clk 0:00:06]} 52. Bxc2 {[%clk 0:00:04]}  Kxc2 {[%clk 0:00:07]} 53. Ke4 {[%clk 0:00:04]}  Kb3 {[%clk 0:00:08]} 54. Kd3 {[%clk 0:00:05]}  Kxa3 {[%clk 0:00:08]} 55. Kc3 {[%clk 0:00:05]}  a4 {[%clk 0:00:07]} 56. Kc2 {[%clk 0:00:05]}  Ka2 {[%clk 0:00:07]} 57. Kc1 {[%clk 0:00:06]}  a3 {[%clk 0:00:02]} 58. Kc2 {[%clk 0:00:06]}  Ka1 {[%clk 0:00:03]} 59. Kc1 {[%clk 0:00:07]}  a2 {[%clk 0:00:03]} 60. Kc2 {[%clk 0:00:07]} 1/2-1/2

[Event "December 12 Early 2023"]
[Site "https://www.chess.com"]
[Date "2023.12.12"]
[Round "5"]
[White "Ambartsumova, Karina"]
[Black "Dyulgerov, Volen"]
[Result "1-0"]
[Board "137"]
[TimeControl "180+1"]
[WhiteFideId "4166299"]
[BlackFideId "2918978"]
[WhiteElo "2639"]
[BlackElo "2413"]
[WhiteTeam "RUS"]
[BlackTeam "BUL"]
[WhiteClock "0:01:32"]
[BlackClock "0:00:44"]

1. d4 {[%clk 0:03:00]}  e5 {[%clk 0:02:59]} 2. dxe5 {[%clk 0:02:59]}  d6 {[%clk 0:03:00]} 3. Nf3 {[%clk 0:02:55]}  Nc6 {[%clk 0:03:00]} 4. Bf4 {[%clk 0:02:49]}  Bg4 {[%clk 0:02:58]} 5. exd6 {[%clk 0:02:46]}  Qf6 {[%clk 0:02:53]} 6. Qc1 {[%clk 0:02:40]}  O-O-O {[%clk 0:02:26]} 7. dxc7 {[%clk 0:02:32]}  Rd5 {[%clk 0:01:47]} 8. Nc3 {[%clk 0:02:29]}  Bb4 {[%clk 0:01:37]} 9. e4 {[%clk 0:01:55]}  Bxf3 {[%clk 0:01:11]} 10. gxf3 {[%clk 0:01:44]}  Nge7 {[%clk 0:00:56]} 11. exd5 {[%clk 0:01:33]}  Nxd5 {[%clk 0:00:56]} 12. Bh3+ {[%clk 0:01:33]}  Qf5 {[%clk 0:00:44]} 13. Bxf5# {[%clk 0:01:32]} 1-0

[Event "December 12 Early 2023"]
[Site "https://www.chess.com"]
[Date "2023.12.12"]
[Round "5"]
[White "Tanriverdi, Enes"]
[Black "Skaric, Djuro"]
[Result "1-0"]
[Board "138"]
[TimeControl "180+1"]
[WhiteFideId "34543279"]
[BlackFideId "934569"]
[WhiteElo "2620"]
[BlackElo "2406"]
[WhiteTeam "TUR"]
[BlackTeam "SRB"]
[WhiteClock "0:00:33"]
[BlackClock "0:00:26"]

1. e4 {[%clk 0:03:00]}  d6 {[%clk 0:03:00]} 2. Nf3 {[%clk 0:03:00]}  g6 {[%clk 0:03:01]} 3. d4 {[%clk 0:03:00]}  Bg7 {[%clk 0:03:01]} 4. Nc3 {[%clk 0:03:01]}  Nf6 {[%clk 0:03:02]} 5. Bc4 {[%clk 0:02:59]}  O-O {[%clk 0:03:02]} 6. Qe2 {[%clk 0:02:58]}  Nc6 {[%clk 0:03:03]} 7. h3 {[%clk 0:02:57]}  e5 {[%clk 0:03:00]} 8. dxe5 {[%clk 0:02:57]}  Nxe5 {[%clk 0:02:58]} 9. Nxe5 {[%clk 0:02:56]}  dxe5 {[%clk 0:02:58]} 10. O-O {[%clk 0:02:57]}  h6 {[%clk 0:02:58]} 11. b3 {[%clk 0:02:54]}  c6 {[%clk 0:02:56]} 12. Rd1 {[%clk 0:02:48]}  Qe7 {[%clk 0:02:49]} 13. a4 {[%clk 0:02:48]}  Rd8 {[%clk 0:02:49]} 14. Rxd8+ {[%clk 0:02:42]}  Qxd8 {[%clk 0:02:49]} 15. Ba3 {[%clk 0:02:40]}  Bf8 {[%clk 0:02:46]} 16. Bxf8 {[%clk 0:02:37]}  Qxf8 {[%clk 0:02:45]} 17. Qe3 {[%clk 0:02:35]}  Kg7 {[%clk 0:02:43]} 18. Rd1 {[%clk 0:02:34]}  Qe7 {[%clk 0:02:40]} 19. a5 {[%clk 0:02:32]}  Nh5 {[%clk 0:02:22]} 20. Ne2 {[%clk 0:02:12]}  Be6 {[%clk 0:02:14]} 21. Bxe6 {[%clk 0:02:08]}  Qxe6 {[%clk 0:02:14]} 22. Qd2 {[%clk 0:02:00]}  Re8 {[%clk 0:02:10]} 23. Qd7 {[%clk 0:01:58]}  Qe7 {[%clk 0:02:04]} 24. Qxe7 {[%clk 0:01:50]}  Rxe7 {[%clk 0:02:04]} 25. Rd8 {[%clk 0:01:45]}  Nf4 {[%clk 0:01:58]} 26. Kf1 {[%clk 0:01:41]}  Ne6 {[%clk 0:01:49]} 27. Rd2 {[%clk 0:01:21]}  f5 {[%clk 0:01:48]} 28. Nc3 {[%clk 0:01:18]}  Nd4 {[%clk 0:01:41]} 29. exf5 {[%clk 0:01:13]}  gxf5 {[%clk 0:01:38]} 30. Ne2 {[%clk 0:01:08]}  Nxe2 {[%clk 0:01:37]} 31. Kxe2 {[%clk 0:01:08]}  Kf6 {[%clk 0:01:36]} 32. Ke3 {[%clk 0:01:06]}  Ke6 {[%clk 0:01:35]} 33. Rd8 {[%clk 0:01:04]}  Rd7 {[%clk 0:01:33]} 34. Rxd7 {[%clk 0:01:04]}  Kxd7 {[%clk 0:01:33]} 35. f4 {[%clk 0:00:41]}  Ke6 {[%clk 0:01:30]} 36. fxe5 {[%clk 0:00:37]}  Kxe5 {[%clk 0:01:30]} 37. g3 {[%clk 0:00:37]}  b6 {[%clk 0:01:26]} 38. axb6 {[%clk 0:00:34]}  axb6 {[%clk 0:01:26]} 39. Kf3 {[%clk 0:00:34]}  b5 {[%clk 0:01:21]} 40. b4 {[%clk 0:00:33]}  h5 {[%clk 0:00:46]} 41. Ke3 {[%clk 0:00:30]}  Kd5 {[%clk 0:00:35]} 42. Kf4 {[%clk 0:00:30]}  Kc4 {[%clk 0:00:30]} 43. Kxf5 {[%clk 0:00:30]}  Kxb4 {[%clk 0:00:31]} 44. g4 {[%clk 0:00:30]}  hxg4 {[%clk 0:00:31]} 45. hxg4 {[%clk 0:00:31]}  Kc3 {[%clk 0:00:30]} 46. g5 {[%clk 0:00:32]}  Kxc2 {[%clk 0:00:31]} 47. g6 {[%clk 0:00:33]}  b4 {[%clk 0:00:30]} 48. g7 {[%clk 0:00:34]}  c5 {[%clk 0:00:31]} 49. g8=Q {[%clk 0:00:34]}  Kc3 {[%clk 0:00:29]} 50. Qg3+ {[%clk 0:00:33]}  Kb2 {[%clk 0:00:29]} 51. Qf2+ {[%clk 0:00:32]}  Kb3 {[%clk 0:00:26]} 52. Qxc5 {[%clk 0:00:33]} 1-0

[Event "December 12 Early 2023"]
[Site "https://www.chess.com"]
[Date "2023.12.12"]
[Round "5"]
[White "Rose, Felix"]
[Black "Batsiashvili, Nino"]
[Result "0-1"]
[Board "143"]
[TimeControl "180+1"]
[WhiteFideId "5105722"]
[BlackFideId "13602993"]
[WhiteElo "2314"]
[BlackElo "2522"]
[WhiteTeam "MEX"]
[BlackTeam "GEO"]
[WhiteClock "0:00:05"]
[BlackClock "0:00:19"]

1. e4 {[%clk 0:03:00]}  b6 {[%clk 0:02:51]} 2. d4 {[%clk 0:02:59]}  Bb7 {[%clk 0:02:52]} 3. Bd3 {[%clk 0:03:00]}  e6 {[%clk 0:02:52]} 4. Nf3 {[%clk 0:03:00]}  Nf6 {[%clk 0:02:52]} 5. Qe2 {[%clk 0:02:54]}  c5 {[%clk 0:02:52]} 6. c3 {[%clk 0:02:54]}  Be7 {[%clk 0:02:46]} 7. O-O {[%clk 0:02:52]}  d5 {[%clk 0:02:44]} 8. e5 {[%clk 0:02:52]}  Ne4 {[%clk 0:02:44]} 9. Nbd2 {[%clk 0:02:52]}  Nxd2 {[%clk 0:02:32]} 10. Bxd2 {[%clk 0:02:53]}  Nc6 {[%clk 0:02:32]} 11. g3 {[%clk 0:02:43]}  h6 {[%clk 0:02:30]} 12. h4 {[%clk 0:02:42]}  Qd7 {[%clk 0:02:24]} 13. a3 {[%clk 0:02:41]}  O-O-O {[%clk 0:02:18]} 14. dxc5 {[%clk 0:02:16]}  Bxc5 {[%clk 0:02:11]} 15. Ba6 {[%clk 0:02:14]}  Bxa6 {[%clk 0:01:57]} 16. Qxa6+ {[%clk 0:02:13]}  Qb7 {[%clk 0:01:58]} 17. Qxb7+ {[%clk 0:02:12]}  Kxb7 {[%clk 0:01:59]} 18. b4 {[%clk 0:02:12]}  Be7 {[%clk 0:01:58]} 19. Be3 {[%clk 0:02:11]}  f6 {[%clk 0:01:50]} 20. Bd4 {[%clk 0:01:45]}  Nxd4 {[%clk 0:01:32]} 21. cxd4 {[%clk 0:01:36]}  f5 {[%clk 0:01:31]} 22. h5 {[%clk 0:01:29]}  Rc8 {[%clk 0:01:30]} 23. Rfc1 {[%clk 0:01:26]}  Ka6 {[%clk 0:01:27]} 24. Ne1 {[%clk 0:01:16]}  Bg5 {[%clk 0:01:22]} 25. f4 {[%clk 0:01:13]}  Be7 {[%clk 0:01:22]} 26. Nd3 {[%clk 0:01:12]}  Rc4 {[%clk 0:01:19]} 27. Rxc4 {[%clk 0:00:55]}  dxc4 {[%clk 0:01:20]} 28. Nb2 {[%clk 0:00:53]}  Rc8 {[%clk 0:01:13]} 29. Rc1 {[%clk 0:00:53]}  Kb5 {[%clk 0:01:06]} 30. Kf2 {[%clk 0:00:49]}  a5 {[%clk 0:01:00]} 31. bxa5 {[%clk 0:00:21]}  bxa5 {[%clk 0:01:00]} 32. a4+ {[%clk 0:00:20]}  Kb4 {[%clk 0:00:58]} 33. Ke3 {[%clk 0:00:20]}  c3 {[%clk 0:00:49]} 34. Nd3+ {[%clk 0:00:12]}  Kxa4 {[%clk 0:00:38]} 35. Ra1+ {[%clk 0:00:09]}  Kb5 {[%clk 0:00:34]} 36. Rb1+ {[%clk 0:00:09]}  Bb4 {[%clk 0:00:28]} 37. d5 {[%clk 0:00:08]}  c2 {[%clk 0:00:18]} 38. Rc1 {[%clk 0:00:09]}  exd5 {[%clk 0:00:17]} 39. Nxb4 {[%clk 0:00:07]}  axb4 {[%clk 0:00:17]} 40. Kd3 {[%clk 0:00:07]}  b3 {[%clk 0:00:17]} 41. e6 {[%clk 0:00:08]}  b2 {[%clk 0:00:18]} 42. Rxc2 {[%clk 0:00:08]}  b1=Q {[%clk 0:00:18]} 43. Kd4 {[%clk 0:00:07]}  Qxc2 {[%clk 0:00:18]} 44. Ke5 {[%clk 0:00:08]}  Qe4+ {[%clk 0:00:18]} 45. Kd6 {[%clk 0:00:08]}  Re8 {[%clk 0:00:18]} 46. g4 {[%clk 0:00:05]}  Qxe6+ {[%clk 0:00:19]} 0-1

[Event "December 12 Early 2023"]
[Site "https://www.chess.com"]
[Date "2023.12.12"]
[Round "5"]
[White "Monpeurt, Cyrielle"]
[Black "Shinkarev, M"]
[Result "1-0"]
[Board "144"]
[TimeControl "180+1"]
[WhiteFideId "677400"]
[BlackFideId "4145348"]
[WhiteElo "2248"]
[BlackElo "2500"]
[WhiteTeam "FRA"]
[BlackTeam "RUS"]
[WhiteClock "0:00:07"]
[BlackClock "0:00:00"]

1. Nf3 {[%clk 0:02:53]}  d5 {[%clk 0:02:59]} 2. c4 {[%clk 0:02:51]}  c6 {[%clk 0:02:58]} 3. g3 {[%clk 0:02:46]}  g6 {[%clk 0:02:56]} 4. Bg2 {[%clk 0:02:46]}  Bg7 {[%clk 0:02:57]} 5. O-O {[%clk 0:02:46]}  Nf6 {[%clk 0:02:57]} 6. d4 {[%clk 0:02:36]}  O-O {[%clk 0:02:56]} 7. Nc3 {[%clk 0:02:35]}  Ne4 {[%clk 0:02:55]} 8. Bf4 {[%clk 0:02:25]}  Nxc3 {[%clk 0:02:46]} 9. bxc3 {[%clk 0:02:26]}  dxc4 {[%clk 0:02:46]} 10. Ne5 {[%clk 0:02:24]}  Be6 {[%clk 0:02:39]} 11. e4 {[%clk 0:02:21]}  f6 {[%clk 0:02:29]} 12. Nf3 {[%clk 0:02:19]}  Bf7 {[%clk 0:02:22]} 13. Rb1 {[%clk 0:02:19]}  b5 {[%clk 0:02:19]} 14. a4 {[%clk 0:02:19]}  a6 {[%clk 0:02:18]} 15. Qe2 {[%clk 0:02:09]}  Nd7 {[%clk 0:02:15]} 16. Rfd1 {[%clk 0:02:06]}  Nb6 {[%clk 0:02:07]} 17. a5 {[%clk 0:01:52]}  Na4 {[%clk 0:02:02]} 18. e5 {[%clk 0:01:51]}  Bd5 {[%clk 0:01:56]} 19. Qe3 {[%clk 0:01:44]}  Qxa5 {[%clk 0:01:52]} 20. Ra1 {[%clk 0:01:33]}  Qxc3 {[%clk 0:01:46]} 21. Qe2 {[%clk 0:01:25]}  Qb2 {[%clk 0:01:38]} 22. Qe1 {[%clk 0:01:13]}  c3 {[%clk 0:01:34]} 23. Rdb1 {[%clk 0:01:09]}  Qc2 {[%clk 0:01:25]} 24. Rc1 {[%clk 0:01:03]}  Qe4 {[%clk 0:01:13]} 25. Qf1 {[%clk 0:01:01]}  fxe5 {[%clk 0:01:08]} 26. Nh4 {[%clk 0:00:47]}  Rxf4 {[%clk 0:00:45]} 27. Bxe4 {[%clk 0:00:46]}  Rxe4 {[%clk 0:00:45]} 28. dxe5 {[%clk 0:00:40]}  Bxe5 {[%clk 0:00:43]} 29. Re1 {[%clk 0:00:33]}  Bf6 {[%clk 0:00:37]} 30. Rxe4 {[%clk 0:00:28]}  Bxe4 {[%clk 0:00:38]} 31. Qe2 {[%clk 0:00:28]}  Bd5 {[%clk 0:00:35]} 32. Rc1 {[%clk 0:00:19]}  Bc4 {[%clk 0:00:27]} 33. Qe4 {[%clk 0:00:18]}  Bd5 {[%clk 0:00:24]} 34. Qe2 {[%clk 0:00:18]}  Nc5 {[%clk 0:00:22]} 35. Nf3 {[%clk 0:00:15]}  Nb3 {[%clk 0:00:22]} 36. Rc2 {[%clk 0:00:13]}  Kg7 {[%clk 0:00:18]} 37. Qe3 {[%clk 0:00:12]}  b4 {[%clk 0:00:16]} 38. Ne5 {[%clk 0:00:11]}  Na1 {[%clk 0:00:13]} 39. Rc1 {[%clk 0:00:11]}  b3 {[%clk 0:00:13]} 40. Rxa1 {[%clk 0:00:11]}  b2 {[%clk 0:00:12]} 41. Rb1 {[%clk 0:00:10]}  Rb8 {[%clk 0:00:09]} 42. Qxc3 {[%clk 0:00:09]}  Rb3 {[%clk 0:00:08]} 43. Qd4 {[%clk 0:00:08]}  c5 {[%clk 0:00:03]} 44. Qxd5 {[%clk 0:00:08]}  Rc3 {[%clk 0:00:00]} 45. Rxb2 {[%clk 0:00:07]} 1-0

[Event "December 12 Early 2023"]
[Site "https://www.chess.com"]
[Date "2023.12.12"]
[Round "5"]
[White "Tuleyeva-Aketayeva, Dana"]
[Black "Ljukin, Sergei"]
[Result "1-0"]
[Board "145"]
[TimeControl "180+1"]
[WhiteFideId "13701932"]
[BlackFideId "14102200"]
[WhiteElo "2311"]
[BlackElo "2486"]
[WhiteTeam "KAZ"]
[BlackTeam "UKR"]
[WhiteClock "0:00:28"]
[BlackClock "0:00:00"]

1. d4 {[%clk 0:03:00]}  d5 {[%clk 0:03:00]} 2. Nf3 {[%clk 0:03:01]}  Nf6 {[%clk 0:03:00]} 3. g3 {[%clk 0:03:01]}  Bf5 {[%clk 0:03:00]} 4. Bg2 {[%clk 0:03:01]}  e6 {[%clk 0:03:00]} 5. O-O {[%clk 0:03:01]}  Bd6 {[%clk 0:03:01]} 6. c4 {[%clk 0:03:02]}  c6 {[%clk 0:03:01]} 7. Nc3 {[%clk 0:03:02]}  O-O {[%clk 0:03:01]} 8. Nd2 {[%clk 0:03:03]}  b5 {[%clk 0:02:46]} 9. cxb5 {[%clk 0:02:59]}  cxb5 {[%clk 0:02:46]} 10. Nxb5 {[%clk 0:03:00]}  Be7 {[%clk 0:02:44]} 11. Nc3 {[%clk 0:02:57]}  Nc6 {[%clk 0:02:42]} 12. e3 {[%clk 0:02:28]}  Rc8 {[%clk 0:02:22]} 13. Nf3 {[%clk 0:02:15]}  Nb4 {[%clk 0:01:53]} 14. Nh4 {[%clk 0:02:10]}  Bg4 {[%clk 0:01:51]} 15. Qd2 {[%clk 0:01:56]}  Ne4 {[%clk 0:01:39]} 16. Nxe4 {[%clk 0:01:43]}  dxe4 {[%clk 0:01:37]} 17. Bxe4 {[%clk 0:01:44]}  Bxh4 {[%clk 0:01:38]} 18. Qxb4 {[%clk 0:01:40]}  Be7 {[%clk 0:01:25]} 19. Qe1 {[%clk 0:01:32]}  Bh3 {[%clk 0:01:22]} 20. Bg2 {[%clk 0:01:32]}  Bxg2 {[%clk 0:01:22]} 21. Kxg2 {[%clk 0:01:33]}  Rc2 {[%clk 0:01:22]} 22. b3 {[%clk 0:01:28]}  h5 {[%clk 0:01:17]} 23. Qd1 {[%clk 0:01:22]}  Qd5+ {[%clk 0:01:03]} 24. Kg1 {[%clk 0:01:21]}  Rfc8 {[%clk 0:01:02]} 25. h4 {[%clk 0:01:17]}  Qf5 {[%clk 0:00:16]} 26. Kg2 {[%clk 0:01:08]}  Qg6 {[%clk 0:00:10]} 27. Bd2 {[%clk 0:00:48]}  Bxh4 {[%clk 0:00:05]} 28. Rc1 {[%clk 0:00:43]}  Rxc1 {[%clk 0:00:03]} 29. Bxc1 {[%clk 0:00:44]}  Be7 {[%clk 0:00:03]} 30. Rh1 {[%clk 0:00:33]}  h4 {[%clk 0:00:03]} 31. Qf3 {[%clk 0:00:31]}  Rc2 {[%clk 0:00:03]} 32. Qa8+ {[%clk 0:00:29]}  Bf8 {[%clk 0:00:00]} 33. Ba3 {[%clk 0:00:28]} 1-0

[Event "December 12 Early 2023"]
[Site "https://www.chess.com"]
[Date "2023.12.12"]
[Round "5"]
[White "Koridze, Lile"]
[Black "Janaszak, Dawid"]
[Result "0-1"]
[Board "148"]
[TimeControl "180+1"]
[WhiteFideId "13612514"]
[BlackFideId "1119206"]
[WhiteElo "2369"]
[BlackElo "2590"]
[WhiteTeam "GEO"]
[BlackTeam "POL"]
[WhiteClock "0:02:21"]
[BlackClock "0:02:48"]

1. d4 {[%clk 0:03:00]}  Nf6 {[%clk 0:02:59]} 2. c4 {[%clk 0:03:01]}  g6 {[%clk 0:02:59]} 3. Nc3 {[%clk 0:03:01]}  Bg7 {[%clk 0:02:59]} 4. e4 {[%clk 0:03:01]}  d6 {[%clk 0:03:00]} 5. Nf3 {[%clk 0:03:01]}  O-O {[%clk 0:02:58]} 6. Be2 {[%clk 0:03:01]}  e5 {[%clk 0:02:59]} 7. Be3 {[%clk 0:02:53]}  h6 {[%clk 0:02:57]} 8. O-O {[%clk 0:02:52]}  Ng4 {[%clk 0:02:57]} 9. Qc1 {[%clk 0:02:48]}  Nxe3 {[%clk 0:02:53]} 10. Qxe3 {[%clk 0:02:48]}  Nc6 {[%clk 0:02:52]} 11. Rfd1 {[%clk 0:02:46]}  exd4 {[%clk 0:02:52]} 12. Nxd4 {[%clk 0:02:45]}  Nxd4 {[%clk 0:02:52]} 13. Rxd4 {[%clk 0:02:45]}  Bxd4 {[%clk 0:02:52]} 14. Qxd4 {[%clk 0:02:46]}  c6 {[%clk 0:02:50]} 15. Rd1 {[%clk 0:02:41]}  Be6 {[%clk 0:02:50]} 16. f4 {[%clk 0:02:37]}  Qb6 {[%clk 0:02:46]} 17. Qxb6 {[%clk 0:02:36]}  axb6 {[%clk 0:02:47]} 18. Rxd6 {[%clk 0:02:37]}  Rfd8 {[%clk 0:02:47]} 19. Rxd8+ {[%clk 0:02:23]}  Rxd8 {[%clk 0:02:48]} 20. Kf2 {[%clk 0:02:23]}  Rd2 {[%clk 0:02:48]} 21. b3 {[%clk 0:02:21]}  Rc2 {[%clk 0:02:48]} 0-1